bitfinex/quotes_BTCUSD_20240730
["timestamp","ask_amount","ask_price","bid_price","bid_amount"]
[1722325871523,1.07903718,67092.0,67090.0,0.000913]
[1722325872277,1.08103718,67092.0,67090.0,0.000913]
[1722325872745,1.08203718,67092.0,67090.0,0.000913]
[1722325872906,1.046343,67092.0,67090.0,0.000913]
[1722325873118,1.08192139,67092.0,67090.0,0.000913]
[1722325873313,1.2135023,67092.0,67090.0,0.000913]
[1722325873730,1.36426508,67092.0,67090.0,0.000913]
[1722325874301,1.2135023,67092.0,67090.0,0.000913]
[1722325874493,1.36426508,67092.0,67090.0,0.000913]
[1722325875279,1.2135023,67092.0,67090.0,0.000913]
[1722325875511,1.36423638,67092.0,67090.0,0.000913]
[1722325875629,1.21343461,67092.0,67090.0,0.000913]
[1722325876314,1.21345888,67092.0,67090.0,0.000913]
[1722325876737,1.3714187,67092.0,67090.0,0.000913]
[1722325877466,1.4349187,67092.0,67090.0,0.000913]
[1722325877875,1.7520575,67092.0,67090.0,0.000913]
[1722325878053,1.9879805,67092.0,67090.0,0.000913]
[1722325878206,1.7680575,67092.0,67090.0,0.000913]
[1722325878411,2.1842805,67092.0,67090.0,0.000913]
[1722325878833,1.9643575,67092.0,67090.0,0.000913]
[1722325879402,1.95826271,67092.0,67090.0,0.000913]
[1722325879603,2.0642085,67092.0,67090.0,0.000913]
[1722325880744,2.04081973,67092.0,67090.0,0.000913]
[1722325882016,2.33891773,67092.0,67090.0,0.000913]
[1722325882486,2.55865018,67092.0,67090.0,0.000913]
[1722325882716,2.33883727,67092.0,67090.0,0.000913]
[1722325883310,2.33914976,67092.0,67090.0,0.000913]
[1722325883917,2.06444401,67092.0,67090.0,0.000913]
[1722325884466,2.28407332,67092.0,67090.0,0.000913]
[1722325884660,2.06444401,67092.0,67090.0,0.000913]
[1722325885168,2.04037941,67092.0,67090.0,0.000913]
[1722325885729,1.97010458,67092.0,67090.0,0.000913]
[1722325886045,2.04037931,67092.0,67090.0,0.000913]
[1722325887435,2.03037931,67092.0,67090.0,0.000913]
[1722325887933,2.24996715,67092.0,67090.0,0.000913]
[1722325888378,2.54806515,67092.0,67090.0,0.000913]
[1722325888624,2.36186951,67092.0,67090.0,0.000913]
[1722325889029,2.25636414,67092.0,67090.0,0.000913]
[1722325889201,2.58180117,67092.0,67090.0,0.000913]
[1722325889401,2.36223939,67092.0,67090.0,0.000913]
[1722325892330,2.25636414,67092.0,67090.0,0.000913]
[1722325892694,2.36255312,67092.0,67090.0,0.000913]
[1722325892898,2.25636414,67092.0,67090.0,0.000913]
[1722325893099,2.36255311,67092.0,67090.0,0.000913]
[1722325893357,2.24485311,67092.0,67090.0,0.000913]
[1722325894755,2.13866414,67092.0,67090.0,0.000913]
[1722325894995,2.24457338,67092.0,67090.0,0.000913]
[1722325895279,2.76410291,67092.0,67090.0,0.000913]
[1722325895433,2.54457338,67092.0,67090.0,0.000913]
[1722325895779,2.54437784,67092.0,67090.0,0.000913]
[1722325897955,2.52098564,67092.0,67090.0,0.000913]
[1722325899199,2.41527194,67092.0,67090.0,0.000913]
[1722325899405,2.52123126,67092.0,67090.0,0.000913]
[1722325899544,1.651697,67079.0,67078.0,0.0015542]
[1722325899746,1.95925632,67079.0,67078.0,0.0015542]
[1722325900100,1.95925632,67079.0,67077.0,0.0785]
[1722325900101,1.05356,67078.0,67077.0,0.0785]
[1722325900302,1.73119791,67078.0,67077.0,0.0785]
[1722325900501,1.83939005,67078.0,67077.0,0.0785]
[1722325900679,1.68887146,67078.0,67077.0,0.0785]
[1722325901491,1.70226565,67078.0,67077.0,0.0785]
[1722325901870,1.71026565,67078.0,67077.0,0.0795]
[1722325902074,1.72026565,67078.0,67077.0,0.0795]
[1722325902270,1.63030633,67078.0,67077.0,0.0795]
[1722325902470,1.74418691,67078.0,67077.0,0.0795]
[1722325902986,1.74418806,67078.0,67077.0,0.0795]
[1722325903809,1.72818806,67078.0,67077.0,0.0795]
[1722325904656,1.72802612,67078.0,67077.0,0.0795]
[1722325904817,1.73694652,67078.0,67077.0,0.0795]
[1722325906093,1.71355233,67078.0,67077.0,0.080413]
[1722325906997,1.71955233,67078.0,67077.0,0.080413]
[1722325907196,1.71355233,67078.0,67077.0,0.080413]
[1722325908749,1.62383254,67078.0,67077.0,0.080413]
[1722325908873,1.72961428,67078.0,67077.0,0.080413]
[1722325909085,1.75300836,67078.0,67077.0,0.080413]
[1722325909294,1.73700836,67078.0,67077.0,0.080413]
[1722325909496,1.75300836,67078.0,67077.0,0.080413]
[1722325909900,2.11094136,67078.0,67077.0,0.001913]
[1722325910140,1.81278136,67078.0,67077.0,0.001913]
[1722325910597,1.81278136,67078.0,67077.0,0.081513]
[1722325911881,1.70699962,67078.0,67077.0,0.081513]
[1722325912235,1.81162795,67078.0,67077.0,0.081513]
[1722325912436,1.70699962,67078.0,67077.0,0.081513]
[1722325912664,1.81164448,67078.0,67077.0,0.081513]
[1722325913687,1.7882504,67078.0,67077.0,0.081513]
[1722325914711,1.7882504,67078.0,67069.0,0.0771]
[1722325914712,1.351877,67070.0,67069.0,0.0771]
[1722325914902,1.55112186,67070.0,67069.0,0.0771]
[1722325915121,1.57412186,67070.0,67069.0,0.0771]
[1722325915351,1.6735514,67070.0,67069.0,0.0771]
[1722325915604,1.6735514,67070.0,67065.0,0.0662]
[1722325915605,1.341958,67066.0,67065.0,0.0662]
[1722325915807,1.52380172,67066.0,67065.0,0.0662]
[1722325916386,1.52380172,67066.0,67065.0,0.1486]
[1722325916987,1.52380172,67066.0,67065.0,0.0824]
[1722325916988,1.69719936,67066.0,67065.0,0.0824]
[1722325917125,1.69719936,67066.0,67064.0,0.0015]
[1722325917126,1.351981,67065.0,67064.0,0.0015]
[1722325917335,1.57822472,67065.0,67064.0,0.0015]
[1722325918212,1.59422472,67065.0,67064.0,0.0015]
[1722325918433,1.490981,67065.0,67064.0,0.0015]
[1722325918779,1.70320727,67065.0,67064.0,0.0015]
[1722325919339,1.59917314,67065.0,67064.0,0.0015]
[1722325919535,1.70320766,67065.0,67064.0,0.0015]
[1722325920544,1.68720766,67065.0,67064.0,0.0015]
[1722325920920,1.70120766,67065.0,67064.0,0.0015]
[1722325921226,1.69388245,67065.0,67064.0,0.0015]
[1722325921460,1.71028171,67065.0,67064.0,0.0015]
[1722325921652,1.71488245,67065.0,67064.0,0.0015]
[1722325921876,1.71516241,67065.0,67064.0,0.0015]
[1722325922326,1.68557027,67065.0,67064.0,0.0015]
[1722325924260,1.68614467,67065.0,67064.0,0.0015]
[1722325924636,1.98315627,67065.0,67064.0,0.0015]
[1722325924986,1.74714467,67065.0,67064.0,0.0015]
[1722325925185,2.00655543,67065.0,67064.0,0.0015]
[1722325925482,1.93723815,67065.0,67064.0,0.0015]
[1722325925779,1.91383899,67065.0,67064.0,0.0015]
[1722325925937,2.13385059,67065.0,67064.0,0.0015]
[1722325926346,2.21205699,67065.0,67064.0,0.0015]
[1722325926640,2.21205699,67065.0,67060.0,0.009229]
[1722325926641,1.369822,67061.0,67060.0,0.009229]
[1722325926839,1.95822067,67061.0,67060.0,0.009229]
[1722325928498,1.96933037,67061.0,67060.0,0.009229]
[1722325928703,1.98033037,67061.0,67060.0,0.009229]
[1722325929023,2.00373137,67061.0,67060.0,0.009229]
[1722325929227,2.15442569,67061.0,67060.0,0.009229]
[1722325929527,2.13102469,67061.0,67060.0,0.009229]
[1722325930202,1.98033037,67061.0,67060.0,0.151929]
[1722325930734,1.875657,67061.0,67060.0,0.151929]
[1722325931040,1.98017941,67061.0,67060.0,0.151929]
[1722325932670,2.00358024,67061.0,67060.0,0.151929]
[1722325933080,2.13106958,67061.0,67060.0,0.151929]
[1722325933891,1.29354026,67061.0,67060.0,0.151929]
[1722325934091,1.2934935,67061.0,67060.0,0.151929]
[1722325934793,1.22361858,67061.0,67060.0,0.151929]
[1722325934919,1.30221858,67061.0,67060.0,0.151929]
[1722325935370,1.37196924,67061.0,67060.0,0.151929]
[1722325935583,1.52266356,67061.0,67060.0,0.151929]
[1722325936329,1.54606349,67061.0,67060.0,0.151929]
[1722325936740,1.52266356,67061.0,67060.0,0.151929]
[1722325937293,1.52213519,67061.0,67060.0,0.151929]
[1722325939609,1.54553529,67061.0,67060.0,0.151929]
[1722325940063,1.39484097,67061.0,67060.0,0.151929]
[1722325940593,1.39490087,67061.0,67060.0,0.151929]
[1722325941043,1.39496996,67061.0,67060.0,0.151929]
[1722325941968,1.39496996,67061.0,67060.0,0.089829]
[1722325943092,1.40496996,67061.0,67060.0,0.089829]
[1722325943433,1.54566428,67061.0,67060.0,0.089829]
[1722325944281,1.55566428,67061.0,67060.0,0.089829]
[1722325944657,1.87166428,67061.0,67060.0,0.009229]
[1722325945042,2.16989928,67061.0,67060.0,0.009229]
[1722325946987,2.16916794,67061.0,67060.0,0.009229]
[1722325947213,2.16917047,67061.0,67060.0,0.009229]
[1722325947418,2.46740547,67061.0,67060.0,0.009229]
[1722325947594,2.20927037,67061.0,67060.0,1e-08]
[1722325948196,2.20927037,67061.0,67058.0,0.009229]
[1722325948197,1.36808,67060.0,67058.0,0.009229]
[1722325948496,1.68019357,67060.0,67059.0,1e-08]
[1722325948664,1.97843357,67060.0,67059.0,1e-08]
[1722325950133,1.63949905,67060.0,67059.0,1e-08]
[1722325950326,1.87803842,67060.0,67059.0,0.07670001]
[1722325950478,1.66802276,67060.0,67059.0,0.07670001]
[1722325950695,1.67802276,67060.0,67059.0,0.07670001]
[1722325950842,1.67801182,67060.0,67059.0,0.07670001]
[1722325951047,1.56641182,67060.0,67059.0,0.07670001]
[1722325951398,1.64501182,67060.0,67059.0,0.07670001]
[1722325951900,1.49746614,67060.0,67059.0,0.07670001]
[1722325952128,1.49746614,67060.0,67059.0,0.13690001]
[1722325952129,1.26817182,67060.0,67059.0,0.13690001]
[1722325952379,1.29117182,67060.0,67059.0,0.13690001]
[1722325953640,1.29053465,67060.0,67059.0,0.13690001]
[1722325953836,1.44122999,67060.0,67059.0,0.13690001]
[1722325955412,1.46463064,67060.0,67059.0,0.13690001]
[1722325956740,1.36093497,67060.0,67059.0,0.13690001]
[1722325956890,1.44075294,67060.0,67059.0,0.13690001]
[1722325957104,1.44066848,67060.0,67059.0,0.13690001]
[1722325958850,1.66085784,67060.0,67059.0,0.13690001]
[1722325959374,1.66098727,67060.0,67059.0,0.13690001]
[1722325959553,1.66094063,67060.0,67059.0,0.13690001]
[1722325959694,1.44062128,67060.0,67059.0,0.13690001]
[1722325960130,1.33753432,67060.0,67059.0,0.13690001]
[1722325960445,1.3132808,67060.0,67059.0,0.13690001]
[1722325960668,0.78900065,67060.0,67059.0,0.13690001]
[1722325960869,0.78900065,67060.0,67059.0,0.58826601]
[1722325960870,0.07735756,67060.0,67059.0,0.58826601]
[1722325961202,0.07735756,67060.0,67059.0,0.89404426]
[1722325961203,0.05395691,67060.0,67059.0,0.89404426]
[1722325961325,0.05395691,67060.0,67059.0,1.19228826]
[1722325961326,0.02,67060.0,67059.0,1.19228826]
[1722325961533,0.13187891,67060.0,67059.0,1.19228826]
[1722325961962,0.01,67060.0,67059.0,1.19228826]
[1722325962595,0.0670712,67061.0,67060.0,0.7511542]
[1722325962596,0.08942827,67061.0,67060.0,0.7511542]
[1722325962997,0.08942827,67061.0,67060.0,0.75867703]
[1722325963182,0.08942827,67061.0,67060.0,0.90117703]
[1722325963524,0.513597,67071.0,67070.0,0.1465]
[1722325963777,0.54705725,67071.0,67070.0,0.1465]
[1722325963971,0.54705725,67071.0,67070.0,0.1365]
[1722325964116,0.54705725,67071.0,67070.0,0.14402283]
[1722325964321,0.67103056,67071.0,67070.0,0.14402283]
[1722325964718,0.67203056,67071.0,67070.0,0.14402283]
[1722325964925,0.49953773,67071.0,67070.0,0.14402283]
[1722325965122,0.50053773,67071.0,67070.0,0.14402283]
[1722325965360,0.3665,67071.0,67070.0,0.14557703]
[1722325965779,0.3665,67071.0,67070.0,0.14402283]
[1722325966163,0.515595,67071.0,67070.0,0.14402283]
[1722325966540,0.813786,67071.0,67070.0,0.14402283]
[1722325967520,0.513595,67071.0,67070.0,0.14402283]
[1722325967847,0.66227592,67071.0,67070.0,0.14402283]
[1722325968053,0.66227592,67071.0,67070.0,0.14702283]
[1722325968609,0.63888083,67071.0,67070.0,0.14702283]
[1722325969068,0.513595,67071.0,67070.0,0.14702283]
[1722325969268,0.62514615,67071.0,67070.0,0.14702283]
[1722325969594,0.513595,67071.0,67070.0,0.14702283]
[1722325970202,0.47605416,67071.0,67070.0,0.14702283]
[1722325970424,0.3645,67071.0,67070.0,0.14702283]
[1722325970737,0.3645,67071.0,67070.0,0.29767403]
[1722325970877,0.06691282,67071.0,67070.0,0.29611983]
[1722325971081,0.06691282,67071.0,67070.0,0.89250983]
[1722325971408,0.08922207,67073.0,67072.0,0.149093]
[1722325971409,0.04459623,67073.0,67072.0,0.149093]
[1722325971551,0.04459623,67076.0,67074.0,0.1433]
[1722325971752,0.00083,67077.0,67076.0,0.885622]
[1722325971753,0.04542293,67077.0,67076.0,0.885622]
[1722325972062,0.04542293,67077.0,67076.0,0.89309067]
[1722325972258,0.00083,67077.0,67076.0,0.89309067]
[1722325972797,0.00083,67077.0,67076.0,0.59492167]
[1722325973001,0.05663687,67077.0,67076.0,0.29830687]
[1722325973139,0.0120611,67077.0,67076.0,0.29830687]
[1722325973345,0.00083,67077.0,67076.0,0.29830687]
[1722325973745,0.00083,67077.0,67076.0,0.14922287]
[1722325973997,0.0453946,67077.0,67076.0,0.29830687]
[1722325974244,0.02422233,67077.0,67076.0,0.29830687]
[1722325974404,0.02422233,67077.0,67076.0,0.30330687]
[1722325974405,0.09208599,67077.0,67076.0,0.30330687]
[1722325974588,0.0473874,67077.0,67076.0,0.30930687]
[1722325974984,0.0473874,67077.0,67076.0,0.16022287]
[1722325974985,0.00283,67077.0,67076.0,0.16022287]
[1722325975196,0.04738698,67077.0,67076.0,0.16022287]
[1722325975391,0.00283,67077.0,67076.0,0.16022287]
[1722325975874,0.06969366,67077.0,67076.0,0.16022287]
[1722325976176,0.450076,67077.0,67076.0,0.16022287]
[1722325976424,0.53916791,67077.0,67076.0,0.15866867]
[1722325976597,0.5168949,67077.0,67076.0,0.1512]
[1722325976799,0.5168949,67077.0,67076.0,0.15866867]
[1722325977005,0.53916791,67077.0,67076.0,0.15866867]
[1722325977184,0.67142443,67077.0,67076.0,0.15866867]
[1722325977526,0.60572511,67077.0,67076.0,0.15866867]
[1722325977679,0.67253827,67077.0,67076.0,0.15866867]
[1722325977875,0.60572511,67077.0,67076.0,0.15866867]
[1722325978119,0.6725383,67077.0,67076.0,0.15866867]
[1722325978338,0.60572511,67077.0,67076.0,0.15866867]
[1722325978538,0.39665302,67077.0,67076.0,0.15866867]
[1722325978864,0.60572511,67077.0,67076.0,0.15866867]
[1722325979131,0.67253282,67077.0,67076.0,0.15866867]
[1722325979303,0.60572511,67077.0,67076.0,0.15866867]
[1722325979705,0.67252912,67077.0,67076.0,0.15866867]
[1722325980005,0.67252824,67077.0,67076.0,0.15866867]
[1722325980218,0.54027172,67077.0,67076.0,0.15866867]
[1722325980432,0.02622259,67077.0,67076.0,0.15866867]
[1722325980640,0.07075561,67077.0,67076.0,0.60592167]
[1722325981071,0.02622259,67077.0,67076.0,0.60592167]
[1722325981455,0.02622259,67077.0,67076.0,0.90409067]
[1722325982031,0.02622259,67077.0,67076.0,1.20225967]
[1722325982032,0.00283,67077.0,67076.0,1.20225967]
[1722325984481,0.00283,67077.0,67076.0,0.90409067]
[1722325985053,0.00283,67077.0,67076.0,1.20225967]
[1722325985470,0.02622097,67077.0,67076.0,1.20225967]
[1722325986669,0.00183,67077.0,67076.0,1.19725967]
[1722325987072,0.00183,67077.0,67076.0,1.20525967]
[1722325987073,0.00283,67077.0,67076.0,1.20525967]
[1722325987421,0.00183,67077.0,67076.0,1.19925967]
[1722325987813,0.00283,67077.0,67076.0,1.21225967]
[1722325989920,0.02622094,67077.0,67076.0,1.21225967]
[1722325990351,0.00283,67077.0,67076.0,1.21225967]
[1722325993588,0.02621952,67077.0,67076.0,1.21225967]
[1722325994046,0.00283,67077.0,67076.0,1.21225967]
[1722325994411,0.00283,67077.0,67076.0,1.21381387]
[1722325994617,0.00283,67077.0,67076.0,1.21225967]
[1722325996671,0.00283,67077.0,67076.0,1.21381387]
[1722325996867,0.00283,67077.0,67076.0,1.21225967]
[1722325997385,0.02621956,67077.0,67076.0,1.21225967]
[1722325997903,0.00283,67077.0,67076.0,1.21225967]
[1722325998090,0.00283,67077.0,67076.0,1.21381387]
[1722325998505,0.00283,67077.0,67076.0,1.21225967]
[1722326000998,0.02621923,67077.0,67076.0,1.21225967]
[1722326001551,0.02621923,67077.0,67076.0,1.78982239]
[1722326001766,0.00283,67077.0,67076.0,2.37335315]
[1722326002377,0.00283,67077.0,67076.0,2.37179895]
[1722326002873,0.08910796,67106.0,67076.0,2.37179895]
[1722326002874,0.44444115,67098.0,67097.0,0.890487]
[1722326003055,0.00083,67107.0,67106.0,0.66549916]
[1722326003260,0.00083,67107.0,67106.0,1.4122022]
[1722326003497,0.00083,67107.0,67106.0,1.42959225]
[1722326003710,0.00083,67107.0,67106.0,1.57028657]
[1722326004273,0.00183,67107.0,67106.0,1.57828657]
[1722326004477,0.00183,67107.0,67106.0,1.27695921]
[1722326004688,0.00083,67107.0,67106.0,1.28295921]
[1722326005298,0.02420913,67107.0,67106.0,1.28295921]
[1722326005701,0.00083,67107.0,67106.0,1.28295921]
[1722326006470,0.00183,67107.0,67106.0,1.29695921]
[1722326006673,0.00183,67107.0,67106.0,1.42665513]
[1722326008093,0.00183,67107.0,67106.0,1.29695921]
[1722326009077,0.02520906,67107.0,67106.0,0.99892421]
[1722326009266,0.00183,67107.0,67106.0,0.70088921]
[1722326009489,0.00183,67107.0,67106.0,0.63738921]
[1722326009693,0.00183,67107.0,67106.0,0.56204205]
[1722326009911,0.00183,67107.0,67106.0,0.26400705]
[1722326010757,0.150845,67107.0,67106.0,0.03539005]
[1722326010960,0.00183,67107.0,67106.0,0.03539005]
[1722326011789,0.00183,67107.0,67106.0,0.11073721]
[1722326011964,0.00183,67107.0,67106.0,0.25975421]
[1722326012173,0.02521165,67107.0,67106.0,0.55778921]
[1722326012977,0.02521165,67107.0,67106.0,0.25975421]
[1722326013148,0.02521165,67107.0,67106.0,0.55778921]
[1722326013649,0.02521165,67107.0,67106.0,0.11073721]
[1722326013809,0.00183,67107.0,67106.0,0.11073721]
[1722326015344,0.00183,67107.0,67106.0,0.25975421]
[1722326015808,0.00183,67107.0,67106.0,0.11073721]
[1722326015990,0.150845,67107.0,67106.0,0.11073721]
[1722326016192,0.00183,67107.0,67106.0,0.11073721]
[1722326017051,0.02521172,67107.0,67106.0,0.11073721]
[1722326017262,0.17422672,67107.0,67106.0,0.11073721]
[1722326017561,0.17422672,67107.0,67106.0,0.10334716]
[1722326017907,0.17422672,67107.0,67106.0,0.11064206]
[1722326018513,0.150845,67107.0,67106.0,0.11064206]
[1722326018914,0.150845,67107.0,67106.0,0.10334716]
[1722326019122,0.448876,67107.0,67106.0,0.11064206]
[1722326019338,0.94337633,67107.0,67106.0,0.10334716]
[1722326019805,0.94338524,67107.0,67106.0,0.10334716]
[1722326020118,0.64535424,67107.0,67106.0,0.10334716]
[1722326020323,0.64535424,67107.0,67106.0,0.07534716]
[1722326020324,0.62309482,67107.0,67106.0,0.07534716]
[1722326020444,0.577576,67107.0,67106.0,0.08334716]
[1722326020651,0.578576,67107.0,67106.0,0.09134716]
[1722326021270,0.66761986,67107.0,67106.0,0.09134716]
[1722326022005,0.39297095,67107.0,67106.0,0.09134716]
[1722326022205,0.69100195,67107.0,67106.0,0.09134716]
[1722326022653,0.60195809,67107.0,67106.0,0.09134716]
[1722326022830,0.69100195,67107.0,67106.0,0.09134716]
[1722326023009,0.59925458,67107.0,67106.0,0.09134716]
[1722326023545,0.62152289,67107.0,67106.0,0.09134716]
[1722326023761,0.06974993,67107.0,67106.0,0.09134716]
[1722326024313,0.06974993,67107.0,67106.0,0.09865497]
[1722326024314,0.17422709,67107.0,67106.0,0.09865497]
[1722326024709,0.47225809,67107.0,67106.0,0.09865497]
[1722326025118,0.53907535,67107.0,67106.0,0.09865497]
[1722326025474,0.448876,67107.0,67106.0,0.09865497]
[1722326025696,0.00183,67107.0,67106.0,0.09865497]
[1722326025899,0.06865918,67107.0,67106.0,0.09865497]
[1722326026101,0.21767418,67107.0,67106.0,0.09865497]
[1722326026666,0.06865918,67107.0,67106.0,0.17935497]
[1722326027134,0.06866136,67107.0,67106.0,0.17935497]
[1722326027265,0.04638507,67107.0,67106.0,0.39755487]
[1722326027471,0.00183,67107.0,67106.0,0.39755487]
[1722326027724,0.00183,67107.0,67106.0,0.69558987]
[1722326028023,0.00183,67107.0,67106.0,0.32837197]
[1722326028368,0.04639011,67107.0,67106.0,0.32837197]
[1722326028805,0.00183,67107.0,67106.0,0.32837197]
[1722326029047,0.06977093,67107.0,67106.0,0.32837197]
[1722326029249,0.06977093,67107.0,67106.0,0.17935497]
[1722326029250,0.02521136,67107.0,67106.0,0.17935497]
[1722326029443,0.09204272,67107.0,67106.0,0.17935497]
[1722326029820,0.09205821,67107.0,67106.0,0.17935497]
[1722326030119,0.06867665,67107.0,67106.0,0.17935497]
[1722326030454,0.06867611,67107.0,67106.0,0.17935497]
[1722326030860,0.00183,67107.0,67106.0,0.17935497]
[1722326031037,0.06868232,67107.0,67106.0,0.17935497]
[1722326031371,0.00183,67107.0,67106.0,0.92444197]
[1722326031506,0.00183,67107.0,67106.0,0.72539117]
[1722326031705,0.00183,67107.0,67106.0,1.02342617]
[1722326031706,0.03458315,67107.0,67106.0,1.02342617]
[1722326032026,0.00183,67107.0,67106.0,0.72539117]
[1722326032436,0.00183,67107.0,67106.0,1.02342617]
[1722326032437,0.04640591,67107.0,67106.0,1.02342617]
[1722326032636,0.04640591,67107.0,67106.0,0.72539117]
[1722326032952,0.04640554,67107.0,67106.0,0.72539117]
[1722326033334,0.00183,67107.0,67106.0,0.72539117]
[1722326033558,0.02521124,67107.0,67106.0,0.42735617]
[1722326033911,0.02521124,67107.0,67106.0,0.32837197]
[1722326034979,0.09208217,67107.0,67106.0,0.32837197]
[1722326036364,0.02521124,67107.0,67106.0,0.32837197]
[1722326037419,0.00183,67107.0,67106.0,0.32837197]
[1722326037738,0.09103068,67107.0,67106.0,0.17935497]
[1722326037938,0.09103068,67107.0,67106.0,0.09865497]
[1722326037939,0.03419745,67107.0,67106.0,0.09865497]
[1722326038139,0.09659745,67107.0,67106.0,0.09865497]
[1722326038341,0.20809831,67107.0,67106.0,0.09865497]
[1722326039370,0.54364345,67107.0,67106.0,0.09865497]
[1722326039578,0.54364345,67107.0,67106.0,0.02330781]
[1722326039579,0.92775008,67107.0,67106.0,0.02330781]
[1722326039716,1.22578108,67107.0,67106.0,0.02330781]
[1722326039916,1.07861489,67107.0,67106.0,0.016]
[1722326040154,0.84191891,67107.0,67106.0,0.016]
[1722326040373,0.809307,67107.0,67106.0,0.008]
[1722326040670,0.809307,67107.0,67100.0,0.14903]
[1722326040671,0.149022,67104.0,67100.0,0.14903]
[1722326040813,0.298036,67106.0,67101.0,0.149028]
[1722326040814,0.03260971,67103.0,67101.0,0.149028]
[1722326041172,0.03260971,67103.0,67099.0,0.37341016]
[1722326041173,0.03260971,67102.0,67099.0,0.07534716]
[1722326041375,0.14418383,67101.0,67099.0,0.07534716]
[1722326041580,0.11157412,67101.0,67099.0,0.07534716]
[1722326042099,0.11157412,67100.0,67099.0,0.07534716]
[1722326042310,0.11159269,67100.0,67099.0,0.07534716]
[1722326042435,0.149027,67102.0,67099.0,0.07534716]
[1722326042623,0.03248659,67101.0,67099.0,0.07534716]
[1722326042827,0.02338361,67100.0,67099.0,0.07534716]
[1722326043078,0.0558702,67100.0,67099.0,0.07534716]
[1722326043282,0.03248659,67100.0,67099.0,0.07534716]
[1722326043492,0.149031,67100.0,67099.0,0.07534716]
[1722326043699,0.03248659,67100.0,67099.0,0.08134716]
[1722326043866,0.03248659,67100.0,67099.0,0.09034716]
[1722326044255,0.03248659,67100.0,67099.0,0.07534716]
[1722326044475,0.03348659,67100.0,67099.0,0.08334716]
[1722326045522,0.03328052,67100.0,67099.0,0.08334716]
[1722326045683,0.03328052,67100.0,67099.0,0.09134716]
[1722326046310,0.16731366,67100.0,67099.0,0.09134716]
[1722326047500,0.03328052,67100.0,67099.0,0.09134716]
[1722326048689,0.03366021,67100.0,67099.0,0.09134716]
[1722326049069,0.05704391,67100.0,67099.0,0.09134716]
[1722326049353,0.20607491,67100.0,67099.0,0.09134716]
[1722326049646,0.03366021,67100.0,67099.0,0.09134716]
[1722326050438,0.03366021,67100.0,67099.0,0.24038016]
[1722326050772,0.03366021,67100.0,67099.0,0.09134716]
[1722326050984,0.03366021,67100.0,67099.0,0.24038016]
[1722326051308,0.03366021,67100.0,67099.0,0.09134716]
[1722326051856,0.001,67100.0,67099.0,0.09134716]
[1722326052068,0.03375429,67100.0,67099.0,0.09134716]
[1722326052466,0.0337543,67100.0,67099.0,0.09134716]
[1722326052894,0.05713791,67100.0,67099.0,0.09134716]
[1722326053496,0.05713791,67100.0,67099.0,0.24038016]
[1722326054023,0.0337543,67100.0,67099.0,0.24038016]
[1722326054235,0.0337543,67100.0,67099.0,0.09865975]
[1722326055076,0.0337543,67100.0,67099.0,0.24769275]
[1722326055280,0.03338728,67100.0,67099.0,0.24769275]
[1722326055679,0.03338728,67100.0,67099.0,0.09865975]
[1722326055864,0.03338728,67100.0,67099.0,0.24769275]
[1722326057036,0.0567708,67100.0,67099.0,0.24769275]
[1722326057349,0.0567708,67100.0,67099.0,0.09865975]
[1722326058385,0.02438352,67100.0,67099.0,0.09865975]
[1722326058813,0.05657902,67100.0,67099.0,0.09865975]
[1722326060550,0.20561002,67100.0,67099.0,0.09865975]
[1722326061310,0.05657902,67100.0,67099.0,0.09865975]
[1722326061514,0.20561002,67100.0,67099.0,0.09865975]
[1722326061924,0.20525027,67100.0,67099.0,0.09865975]
[1722326062245,0.17341452,67100.0,67099.0,0.09865975]
[1722326062442,0.20527852,67100.0,67099.0,0.09865975]
[1722326063469,0.50334052,67100.0,67099.0,0.09865975]
[1722326064125,0.50334052,67100.0,67099.0,0.09134716]
[1722326064243,0.5034321,67100.0,67099.0,0.09134716]
[1722326064700,0.5034321,67100.0,67099.0,0.09865598]
[1722326065465,0.59867863,67100.0,67099.0,0.09865598]
[1722326065810,0.5034321,67100.0,67099.0,0.09865598]
[1722326066342,0.8014941,67100.0,67099.0,0.09865598]
[1722326066549,0.8618941,67100.0,67099.0,0.09865598]
[1722326066692,0.8618941,67100.0,67099.0,0.09134716]
[1722326067630,1.1599561,67100.0,67099.0,0.09134716]
[1722326067800,1.29075171,67100.0,67099.0,0.09134716]
[1722326068124,1.22732388,67100.0,67099.0,0.09134716]
[1722326068326,1.12800052,67100.0,67099.0,0.09134716]
[1722326068526,1.51819406,67100.0,67099.0,0.09134716]
[1722326068728,1.2980054,67100.0,67099.0,0.09134716]
[1722326068904,1.51812879,67100.0,67099.0,0.08334716]
[1722326069102,1.51712879,67100.0,67099.0,0.07534716]
[1722326069485,1.2970054,67100.0,67099.0,0.07834716]
[1722326069700,1.2970054,67100.0,67099.0,0.07534716]
[1722326070108,1.2970054,67100.0,67099.0,0.07934716]
[1722326071510,1.19650052,67100.0,67099.0,0.07934716]
[1722326071706,1.19650052,67100.0,67099.0,0.07634716]
[1722326071707,1.29735711,67100.0,67099.0,0.07634716]
[1722326072113,1.29735711,67100.0,67099.0,0.07834716]
[1722326072315,1.29743102,67100.0,67099.0,0.07834716]
[1722326073968,1.22939214,67100.0,67099.0,0.07834716]
[1722326074133,1.22931428,67100.0,67099.0,0.07834716]
[1722326074908,1.22941586,67100.0,67099.0,0.07834716]
[1722326077850,1.15991586,67100.0,67099.0,0.07834716]
[1722326078253,1.15991586,67100.0,67099.0,0.003]
[1722326078254,1.12700052,67100.0,67099.0,0.003]
[1722326078554,1.22816475,67100.0,67099.0,0.003]
[1722326078753,1.35983098,67100.0,67099.0,0.003]
[1722326078957,1.22816475,67100.0,67099.0,0.003]
[1722326079356,1.16001198,67100.0,67099.0,0.003]
[1722326079964,1.15989585,67100.0,67099.0,0.003]
[1722326081541,1.15986585,67100.0,67099.0,0.003]
[1722326084049,1.15985169,67100.0,67099.0,0.003]
[1722326084241,1.31054601,67100.0,67099.0,0.003]
[1722326084450,1.37860382,67100.0,67099.0,0.003]
[1722326084895,1.67672637,67100.0,67099.0,0.003]
[1722326085820,1.67672637,67100.0,67099.0,0.001]
[1722326086229,1.67972637,67100.0,67099.0,0.001]
[1722326086429,0.745232,67093.0,67092.0,0.07534716]
[1722326086628,0.77814372,67093.0,67092.0,0.08214997]
[1722326086844,0.77814372,67093.0,67092.0,0.07534716]
[1722326088148,0.77821481,67093.0,67092.0,0.07534716]
[1722326088695,1.07630781,67093.0,67092.0,0.07534716]
[1722326089438,1.09969545,67093.0,67092.0,0.07634716]
[1722326090048,1.10870373,67093.0,67092.0,0.07634716]
[1722326090253,1.56099125,67093.0,67092.0,0.001]
[1722326090454,1.33070292,67093.0,67092.0,0.001]